bitfinex/quotes_ETHUSD_20250415
["timestamp","ask_amount","ask_price","bid_price","bid_amount"]
[1744754422038,13.56331884,1600.2,1600.1,0.02]
[1744754422241,16.56331884,1600.2,1600.1,0.02]
[1744754422433,17.03566863,1600.2,1600.1,0.02]
[1744754425117,21.34631008,1600.2,1600.1,0.02]
[1744754426451,21.6719313,1600.2,1600.1,0.02]
[1744754428726,7.08972122,1600.2,1600.1,0.02]
[1744754428903,5.762,1600.2,1600.1,0.02]
[1744754429099,15.01121884,1600.2,1600.1,0.02]
[1744754429648,8.762,1600.2,1600.1,0.02]
[1744754429827,15.01521884,1600.2,1600.1,0.02]
[1744754430014,8.766,1600.2,1600.1,0.02]
[1744754430403,5.766,1600.2,1600.1,6.26960939]
[1744754430597,5.766,1600.2,1600.1,0.02]
[1744754431708,6.316,1600.2,1600.1,0.02]
[1744754432112,15.56521884,1600.2,1600.1,0.02]
[1744754433919,20.86826029,1600.2,1600.1,0.02]
[1744754434233,10.3084,1600.2,1600.1,0.02]
[1744754434432,9.316,1600.2,1600.1,0.02]
[1744754434994,6.316,1600.2,1600.1,0.02]
[1744754437346,6.316,1600.2,1600.1,6.26960939]
[1744754437840,6.316,1600.2,1600.1,0.02]
[1744754438215,12.56521884,1600.2,1600.1,0.02]
[1744754438411,16.55021884,1600.2,1600.1,0.02]
[1744754439469,16.55121884,1600.2,1600.1,0.02]
[1744754443196,16.55121884,1600.2,1599.8,0.3984368]
[1744754443197,6.80039064,1599.9,1599.8,0.3984368]
[1744754443359,59.50239064,1599.9,1599.8,0.3984368]
[1744754444341,59.82796092,1599.9,1599.8,0.3984368]
[1744754444559,60.29332035,1599.9,1599.8,0.3984368]
[1744754445142,66.86532035,1599.9,1599.8,1e-08]
[1744754446100,60.29332035,1599.9,1599.8,1e-08]
[1744754449522,0.55,1599.2,1599.1,0.02]
[1744754449801,0.55,1599.2,1599.1,1.0564]
[1744754449802,6.319,1599.2,1599.1,1.0564]
[1744754449956,6.319,1599.2,1599.1,0.02]
[1744754449957,15.57212656,1599.2,1599.1,0.02]
[1744754450610,16.03265657,1599.2,1599.1,0.02]
[1744754454319,20.34329802,1599.2,1599.1,0.02]
[1744754456317,19.79329802,1599.2,1599.1,0.02]
[1744754456521,20.34329802,1599.2,1599.1,0.02]
[1744754458026,9.22953001,1599.2,1599.1,0.02]
[1744754458214,60.79112656,1599.2,1599.1,0.02]
[1744754458515,54.538,1599.2,1599.1,0.02]
[1744754458817,61.34112656,1599.2,1599.1,0.02]
[1744754459215,69.68186801,1599.2,1599.1,0.02]
[1744754460217,8.769,1599.2,1599.1,0.02]
[1744754460416,15.02212656,1599.2,1599.1,0.02]
[1744754460615,15.57212656,1599.2,1599.1,0.02]
[1744754461204,16.58352656,1599.2,1599.1,0.02]
[1744754461936,16.58352656,1599.2,1599.1,1e-08]
[1744754462301,17.04597355,1599.2,1599.1,1e-08]
[1744754464125,16.03457355,1599.2,1599.1,1e-08]
[1744754464450,10.75639983,1598.9,1598.8,0.55]
[1744754464605,63.84604128,1598.9,1598.8,0.55]
[1744754465202,69.65204128,1598.9,1598.8,0.55]
[1744754465640,68.69994128,1598.9,1598.8,0.55]
[1744754466823,14.11494128,1598.9,1598.8,0.55]
[1744754467053,5.806,1599.1,1598.8,1.5265]
[1744754467211,12.05954681,1599.1,1598.8,7.78109418]
[1744754467738,5.806,1599.1,1598.9,6.25408439]
[1744754467903,5.806,1599.1,1599.0,7.20580869]
[1744754470065,6.2511976,1599.7,1599.6,0.9706]
[1744754470357,15.6071976,1599.7,1599.6,0.9706]
[1744754470517,15.0571976,1599.7,1599.6,0.9706]
[1744754470931,5.806,1599.7,1599.6,0.9706]
[1744754471464,12.60717209,1599.7,1599.6,0.9706]
[1744754472035,6.356,1599.7,1599.6,0.9706]
[1744754472252,12.60717209,1599.7,1599.6,0.9706]
[1744754472450,0.55,1599.7,1599.6,0.9706]
[1744754472650,6.355,1599.7,1599.6,0.9706]
[1744754472864,5.805,1599.7,1599.6,0.9706]
[1744754473368,5.805,1599.7,1599.6,7.22216289]
[1744754473564,5.805,1599.7,1599.6,8.56955912]
[1744754473770,5.805,1600.0,1599.9,6.25039064]
[1744754473959,5.805,1600.0,1599.9,7.21439064]
[1744754474769,5.805,1600.0,1599.9,0.964]
[1744754474969,6.25080801,1599.8,1599.7,0.991]
[1744754475268,9.25093454,1599.8,1599.5,0.991]
[1744754475561,6.25120755,1599.7,1599.5,0.991]
[1744754475768,5.805,1599.6,1599.5,7.96727386]
[1744754476263,5.805,1599.6,1599.5,8.0297881]
[1744754476444,5.805,1599.6,1599.5,7.96727386]
[1744754476846,6.24955501,1600.2,1600.0,0.9694]
[1744754477049,5.804,1600.1,1600.0,0.9694]
[1744754477472,5.804,1600.1,1600.0,7.2194]
[1744754478367,5.804,1600.1,1600.0,0.9694]
[1744754479034,5.804,1600.1,1600.0,7.2194]
[1744754479346,5.804,1600.1,1600.0,0.9694]
[1744754479872,5.804,1600.1,1600.0,7.94136451]
[1744754481667,6.24844806,1600.4,1600.0,14.19120404]
[1744754481867,6.79845677,1600.4,1600.0,1.69136451]
[1744754482087,6.24905786,1600.3,1600.0,0.9694]
[1744754482764,6.79860578,1600.4,1600.0,7.21936797]
[1744754482968,0.55,1600.4,1600.0,0.9694]
[1744754483168,6.24946604,1600.2,1600.0,0.9694]
[1744754483385,5.89,1600.1,1600.0,0.9694]
[1744754483589,5.89,1600.1,1600.0,7.2194]
[1744754483970,5.89,1600.1,1600.0,0.9694]
[1744754484393,12.13960939,1600.1,1600.0,0.9694]
[1744754484758,5.89,1600.1,1600.0,0.9694]
[1744754485394,12.13960939,1600.1,1600.0,0.9694]
[1744754485592,5.89,1600.1,1600.0,0.9694]
[1744754485892,0.55,1600.0,1599.8,0.9846]
[1744754486092,6.80021233,1600.0,1599.8,0.9846]
[1744754486305,0.55,1599.8,1599.6,6.25140539]
[1744754486467,5.89,1599.7,1599.6,0.9846]
[1744754486871,12.50341766,1599.6,1599.3,6.25258192]
[1744754487070,6.44,1599.7,1599.5,0.9846]
[1744754487292,6.44,1599.7,1599.5,7.2364098]
[1744754487592,6.44,1599.7,1599.5,0.9846]
[1744754487788,12.69117644,1599.7,1599.5,0.9846]
[1744754488192,6.25156289,1599.6,1599.5,0.9846]
[1744754488383,12.69117644,1599.7,1599.5,0.9846]
[1744754488580,5.89,1599.8,1599.5,1.70829354]
[1744754488891,5.89,1599.8,1599.7,7.28852087]
[1744754489101,5.89,1600.2,1600.1,1.0375]
[1744754489492,5.89,1600.2,1600.1,7.28710939]
[1744754489990,5.89,1600.2,1600.1,1.0375]
[1744754490307,5.89,1600.2,1599.9,7.2262821]
[1744754490308,12.13924658,1600.2,1599.9,7.2262821]
[1744754490465,5.89,1600.2,1599.9,14.82425689]
[1744754490991,5.89,1600.2,1599.9,14.82425089]
[1744754491195,12.13922652,1600.2,1599.9,8.57397479]
[1744754491397,12.13922652,1600.2,1599.9,0.976]
[1744754491699,12.13922652,1600.2,1599.9,7.22624949]
[1744754491993,18.38862006,1600.2,1599.9,7.22624949]
[1744754492363,12.13922652,1600.2,1599.9,7.22624949]
[1744754492677,18.38862215,1600.2,1599.9,7.22624949]
[1744754493398,18.38871154,1600.2,1599.9,7.22624949]
[1744754493599,18.3886368,1600.2,1599.9,7.22624949]
[1744754494195,6.79994929,1600.1,1599.9,0.976]
[1744754494387,6.79993776,1600.1,1599.9,0.976]
[1744754494567,6.25,1600.0,1599.9,0.976]
[1744754494907,6.79982415,1600.1,1599.9,0.976]
[1744754495106,6.79978268,1600.1,1599.9,0.976]
[1744754495293,13.04965714,1600.1,1599.9,0.976]
[1744754495468,6.79977594,1600.1,1599.9,0.976]
[1744754496499,6.79976721,1600.1,1599.9,0.976]
[1744754497807,0.55,1600.1,1599.9,7.22625045]
[1744754498395,0.55,1600.1,1599.9,0.976]
[1744754498601,6.79961584,1600.1,1599.9,0.976]
[1744754499708,6.79961584,1600.1,1599.9,7.22625948]
[1744754499709,0.55,1600.1,1599.9,7.22625948]
[1744754499908,5.89,1600.2,1600.0,6.24987622]
[1744754500726,5.89,1600.2,1600.1,6.24960939]
[1744754501575,5.89,1600.2,1600.0,6.24981614]
[1744754501879,5.89,1600.2,1600.0,12.49970525]
[1744754502079,5.89,1600.2,1600.0,13.98204504]
[1744754502606,5.89,1600.2,1600.0,1.48233979]
[1744754502607,12.13935577,1600.2,1600.0,1.48233979]
[1744754502810,12.13935577,1600.2,1599.9,14.82411982]
[1744754503418,0.55,1600.1,1599.9,0.976]
[1744754503634,6.79979076,1600.1,1599.9,0.976]
[1744754503922,0.55,1600.1,1599.9,13.47663302]
[1744754504085,0.55,1600.1,1600.0,6.25]
[1744754505584,5.89,1600.2,1600.1,6.24960939]
[1744754507919,48.771,1600.6,1600.3,6.24882834]
[1744754508127,48.771,1600.6,1600.4,6.2482957]
[1744754508542,0.55,1600.5,1600.2,7.30199723]
[1744754508831,0.55,1600.2,1599.9,0.9904]
[1744754509033,5.889,1600.1,1600.0,6.24989398]
[1744754509233,5.889,1600.1,1600.0,7.5989523]
[1744754510636,6.439,1600.4,1600.1,12.49856022]
[1744754510934,5.889,1600.4,1600.3,6.24882834]
[1744754511792,5.889,1600.4,1600.1,7.25033481]
[1744754512140,5.889,1600.4,1600.2,6.24919007]
[1744754512729,12.13765479,1600.4,1600.1,7.25033481]
[1744754512894,0.55,1600.3,1600.0,6.24978827]
[1744754513094,0.55,1600.3,1600.1,6.24959707]
[1744754513539,0.55,1600.3,1600.1,12.49907109]
[1744754513742,0.55,1600.3,1600.1,6.24947402]
[1744754514418,0.55,1600.3,1600.1,6.24947039]
[1744754514952,0.55,1600.3,1600.1,12.49897522]
[1744754515113,5.889,1600.4,1600.1,6.24947039]
[1744754515653,5.889,1600.4,1600.2,6.24911552]
[1744754516120,5.889,1600.4,1600.2,6.24914517]
[1744754517011,5.889,1600.4,1600.2,12.49824297]
[1744754517207,5.889,1600.4,1600.3,7.24942834]
[1744754517714,5.889,1600.4,1600.3,1.0006]
[1744754519356,5.889,1600.4,1600.2,6.2490937]
[1744754519653,5.889,1600.4,1600.2,12.49821531]
[1744754520322,5.889,1600.4,1600.3,6.24882834]
[1744754520522,5.889,1600.4,1600.2,12.49821531]
[1744754520979,5.889,1600.4,1600.2,6.2490937]
[1744754521266,12.13760659,1600.4,1600.1,7.25467786]
[1744754521466,6.24882991,1600.3,1600.0,12.4998786]
[1744754521767,6.79925033,1600.2,1599.9,13.52135652]
[1744754522433,0.55,1600.2,1600.0,6.24998303]
[1744754523065,6.79937128,1600.2,1599.9,13.52135845]
[1744754523461,0.55,1600.2,1600.0,6.2499946]
[1744754523761,0.55,1600.2,1600.0,6.24998199]
[1744754524286,0.55,1600.2,1600.0,12.49987448]
[1744754524470,0.55,1600.3,1600.1,6.24949759]
[1744754525077,0.55,1600.3,1600.1,12.49899071]
[1744754525236,0.55,1600.3,1600.1,6.24949312]
[1744754525578,0.55,1600.3,1600.1,12.49897945]
[1744754525776,0.55,1600.3,1600.1,6.24948633]
[1744754525985,0.55,1600.3,1600.2,6.24921884]
[1744754526542,0.55,1600.3,1600.1,6.24948633]
[1744754526958,5.889,1600.4,1600.3,6.24882834]
[1744754529788,5.889,1600.4,1600.3,7.32300998]
[1744754530280,5.889,1600.4,1600.3,7.26052834]
[1744754531086,5.889,1600.4,1600.3,7.32300961]
[1744754531241,5.889,1600.4,1600.3,7.26052834]
[1744754531444,5.889,1600.4,1600.3,9.60185415]
[1744754533971,0.9517,1600.9,1600.7,6.24724087]
[1744754534172,5.795,1600.8,1600.7,6.24724087]
[1744754534646,5.795,1600.9,1600.8,6.24687656]
[1744754534849,5.795,1600.9,1600.8,6.87156422]
[1744754535080,48.734,1601.1,1601.0,6.24609618]
[1744754536843,54.97975351,1601.1,1600.8,6.24665309]
[1744754537383,7.22272926,1600.9,1600.6,6.24759551]
[1744754537583,5.794,1600.8,1600.6,6.24759551]
[1744754537877,5.794,1600.8,1600.6,12.4951258]
[1744754538082,5.794,1600.8,1600.7,6.24726682]
[1744754538381,5.794,1600.8,1600.6,6.24753029]
[1744754538759,12.04105131,1600.8,1600.4,6.24829399]
[1744754538965,0.55,1600.7,1600.5,6.24796144]
[1744754540554,13.4965822,1600.6,1600.3,6.24871306]
[1744754540869,13.4965822,1600.6,1600.2,12.49832792]
[1744754541074,7.24870858,1600.6,1600.3,6.24871662]
[1744754541548,7.24870858,1600.6,1600.3,12.49739265]
[1744754541750,7.24870858,1600.6,1600.1,6.24960083]
[1744754541751,6.24857064,1600.4,1600.1,6.24960083]
[1744754541987,6.24857064,1600.4,1599.9,3.6437723]
[1744754541988,12.96196431,1600.3,1599.9,7.21542993]
[1744754542192,6.24933882,1600.2,1599.9,13.46568569]
[1744754542384,6.24933882,1600.2,1599.9,6.25025576]
[1744754542684,0.9781,1600.0,1599.7,6.25105397]
[1744754542862,7.22811147,1600.0,1599.7,6.25105397]
[1744754543060,5.736,1599.9,1599.7,6.25105397]
[1744754543264,13.47830338,1600.0,1599.7,6.25105397]
[1744754543494,0.9781,1600.2,1600.0,6.24987202]
[1744754543801,6.24885172,1600.3,1600.1,6.24950667]
[1744754543802,3.0,1600.3,1600.1,6.24950667]
[1744754543965,3.0,1600.3,1600.0,6.24987202]
[1744754544305,5.736,1600.2,1599.9,0.9651]
[1744754544496,5.736,1600.2,1600.0,6.25]
[1744754544799,5.736,1600.2,1600.0,6.24987812]
[1744754545101,6.2503523,1600.0,1599.6,6.25147974]
[1744754545396,12.50132626,1599.9,1599.5,7.22079602]
[1744754545697,5.736,1599.8,1599.5,14.81989286]
[1744754545863,5.736,1599.8,1599.6,6.25140157]
[1744754546065,5.736,1599.8,1599.7,6.25117209]
[1744754548867,48.73,1600.2,1599.7,9.92068998]
[1744754549202,12.98406991,1600.5,1600.2,6.24906827]
[1744754549507,5.737,1600.5,1600.3,6.24865675]
[1744754549679,7.22075393,1600.7,1600.3,12.49734747]
[1744754549875,5.737,1600.6,1600.4,6.24841452]
[1744754550065,0.9734,1600.8,1600.3,0.9262]
[1744754550400,5.737,1600.7,1600.5,6.24773781]
[1744754550602,5.737,1600.7,1600.5,12.49555076]
[1744754550765,5.737,1600.7,1600.5,6.24773781]
[1744754551096,5.737,1600.7,1600.5,12.49566336]
[1744754551297,5.737,1600.7,1600.5,6.24773781]
[1744754551673,5.737,1600.7,1600.4,12.49672016]
[1744754551995,5.737,1600.7,1600.4,6.24836008]
[1744754552238,5.737,1600.7,1600.4,12.49668488]
[1744754552396,11.98429105,1600.7,1600.4,6.2483248]
[1744754552796,11.98429105,1600.7,1600.4,6.24828651]
[1744754552998,18.23174267,1600.7,1600.4,6.24828651]
[1744754553206,18.23174267,1600.7,1600.3,0.9262]
[1744754553207,5.737,1600.7,1600.3,0.9262]
[1744754553507,5.737,1600.7,1600.5,6.24797963]
[1744754553707,11.9842833,1600.7,1600.4,12.49672662]
[1744754554003,5.737,1600.7,1600.4,13.83901928]
[1744754554804,5.737,1600.7,1600.5,6.24792011]
[1744754555003,5.737,1600.7,1600.6,6.24765712]
[1744754555004,11.837,1600.7,1600.6,6.24765712]
[1744754556019,5.737,1600.7,1600.6,7.22965712]
[1744754556203,5.737,1600.7,1600.6,9.20220038]
[1744754556371,48.735,1601.0,1600.9,6.24648635]
[1744754556372,54.471,1601.0,1600.9,6.24648635]
[1744754557067,5.736,1601.0,1600.9,7.22848635]
[1744754557272,6.1,1601.1,1601.0,6.24609618]
[1744754557513,5.736,1601.3,1601.2,7.22731601]
[1744754557724,5.736,1601.3,1601.0,7.22799527]
[1744754557926,6.24592455,1601.1,1600.8,0.9257]
[1744754558089,6.24592455,1601.1,1600.8,6.24687139]
[1744754558411,5.736,1601.3,1601.2,6.24531601]
[1744754558570,1.5293,1601.2,1600.7,0.9555]
[1744754558772,6.24655071,1600.9,1600.5,0.9555]
[1744754558985,5.736,1600.9,1600.7,6.24718807]
[1744754559489,5.736,1600.9,1600.7,12.49429397]
[1744754559815,6.1,1601.0,1600.8,16.19192693]
[1744754559972,0.02,1601.4,1601.2,0.9555]
[1744754560170,0.02,1601.4,1600.8,2.68020833]
[1744754560171,6.24583049,1601.1,1600.8,7.20221546]
[1744754560383,11.836,1601.1,1600.8,13.44895737]
[1744754560595,11.836,1601.1,1600.8,13.44897047]
[1744754560830,18.08185405,1601.1,1600.8,7.20221546]
[1744754560988,11.836,1601.1,1601.0,6.24609618]
[1744754561315,5.736,1601.1,1601.0,7.22699618]
[1744754562300,5.736,1601.1,1601.0,7.28944994]
[1744754562508,5.736,1601.1,1601.0,7.22699618]
[1744754562879,12.9981191,1601.3,1600.8,0.9902]
[1744754563202,0.02,1601.4,1601.3,7.23512599]
[1744754563519,0.02,1601.4,1601.3,8.58315207]
[1744754563876,0.02,1601.4,1601.2,6.2451348]
[1744754564216,0.02,1601.4,1601.1,7.23577415]
[1744754564420,0.02,1601.4,1601.1,0.9902]
[1744754564603,0.02,1601.4,1601.3,6.24492599]
[1744754564819,0.02,1601.4,1601.3,7.25852599]
[1744754565023,0.02,1601.4,1601.3,2.36396608]
[1744754565220,0.02,1601.4,1601.2,6.2451348]
[1744754565630,0.02,1601.4,1601.1,13.50479013]
[1744754565797,0.02,1601.4,1601.1,7.25918138]
[1744754566001,6.26454871,1601.4,1601.1,7.25918138]
[1744754566243,6.26454871,1601.4,1601.1,13.50471608]
[1744754566395,0.02,1601.4,1601.3,6.24492599]
[1744754566598,0.02,1601.4,1601.3,7.19422599]
[1744754567107,0.02,1601.4,1601.1,8.54532622]
[1744754567309,0.02,1601.4,1601.1,14.79087229]
[1744754567744,0.02,1601.4,1601.1,14.79086388]
[1744754568048,0.02,1601.4,1601.1,2.29977161]
[1744754568202,0.02,1601.4,1601.3,6.24492599]
[1744754568933,0.02,1601.4,1601.1,7.19475002]
[1744754569134,0.02,1601.4,1601.1,13.44031355]
[1744754569436,0.02,1601.4,1601.2,6.24519602]
[1744754569934,0.02,1601.4,1601.2,12.49037553]
[1744754570829,0.02,1601.4,1601.2,6.24517951]
[1744754571041,0.02,1601.4,1601.3,6.24492599]
[1744754572145,0.02,1601.4,1601.2,13.83430223]
[1744754572326,0.02,1601.4,1601.1,0.9493]
[1744754572327,6.26457437,1601.4,1601.1,0.9493]
[1744754572536,7.25057437,1601.4,1601.1,0.9493]
[1744754572732,7.25057437,1601.4,1601.3,6.24492599]
[1744754572733,0.02,1601.4,1601.3,6.24492599]
[1744754572935,0.02,1601.4,1601.3,7.25652599]
[1744754573242,0.02,1601.4,1601.3,9.54743077]
[1744754573807,12.50923468,1601.4,1601.1,6.24559129]
[1744754574010,12.50922835,1601.4,1601.1,6.24558882]
[1744754574215,0.02,1601.4,1601.3,6.24492599]
[1744754574415,0.02,1601.4,1601.3,7.18212599]
[1744754575609,0.02,1601.4,1601.2,6.24512256]
[1744754575840,13.09730415,1601.4,1601.1,6.24560504]
[1744754576314,6.8526,1601.4,1601.3,6.24492599]
[1744754576512,5.882,1601.4,1601.3,6.24492599]
[1744754576843,5.882,1601.4,1601.3,7.59327357]
[1744754577222,0.02,1601.4,1601.3,7.59327357]
[1744754577734,0.02,1601.4,1601.3,11.58657357]
[1744754578048,0.02,1601.4,1601.3,8.58657357]
[1744754580274,0.02,1601.4,1601.1,7.2256859]
[1744754580446,0.02,1601.4,1601.3,6.24492599]
[1744754580943,0.02,1601.4,1601.3,7.26572599]
[1744754581140,0.02,1601.4,1601.3,6.24492599]
[1744754581736,0.02,1601.4,1601.2,12.49028524]
[1744754581940,0.01618468,1601.4,1601.2,7.59622926]
[1744754582128,6.26082491,1601.4,1601.1,7.26641602]
[1744754582334,1.00088468,1601.4,1601.1,6.24560327]
[1744754582536,1.00088468,1601.4,1601.2,6.24519462]
[1744754583069,1.00088468,1601.4,1601.3,6.24492599]
[1744754583255,1.00088468,1601.4,1601.2,12.49039056]
[1744754583579,1.00088468,1601.4,1601.1,6.24559895]
[1744754583764,13.4902055,1601.4,1601.1,6.87015885]
[1744754583968,7.24550788,1601.4,1601.1,13.11576411]
[1744754584169,1.00088468,1601.4,1601.2,6.24507374]
[1744754584370,0.01618468,1601.4,1601.3,6.24492599]
[1744754586469,0.01618468,1601.4,1601.3,10.25022599]
[1744754586784,0.01618468,1601.4,1601.3,12.84048066]
[1744754587270,1e-08,1601.4,1601.3,15.51421191]
[1744754587659,5.861,1601.9,1601.8,6.24297665]
[1744754587843,6.8101,1602.2,1602.0,6.24194129]
[1744754588683,6.8101,1602.2,1601.6,3.68713125]
[1744754588889,7.21179605,1601.8,1601.5,6.24404042]
[1744754589060,6.8298,1601.8,1601.5,6.24403033]
[1744754589261,6.8298,1601.8,1601.3,5.26398592]
[1744754589262,6.24386515,1601.6,1601.3,6.24468756]
[1744754589481,7.20936318,1601.5,1601.1,6.87000339]
[1744754589659,13.45387957,1601.5,1601.2,6.24528455]
[1744754589886,5.861,1601.4,1601.1,6.24544349]
[1744754590213,12.10566022,1601.4,1601.1,12.49103516]
[1744754590522,18.35038567,1601.4,1601.1,6.24544349]
[1744754591011,12.10566022,1601.4,1601.1,6.24544349]
[1744754591802,18.35039969,1601.4,1601.1,6.24544349]
[1744754592122,12.10566022,1601.4,1601.1,6.24544349]
[1744754592473,6.24585665,1601.1,1600.8,6.24677322]
[1744754592780,1.0146,1600.8,1600.6,6.24761945]
[1744754592970,5.861,1601.0,1600.9,6.24648635]
[1744754593175,7.1146,1601.2,1600.8,6.24687656]
[1744754593406,7.1146,1601.2,1601.0,6.24587273]
[1744754593607,7.1146,1601.2,1601.0,12.49184]
[1744754593789,7.1146,1601.2,1601.0,6.24587273]
[1744754593987,7.1146,1601.2,1600.7,7.18732298]
[1744754594275,1.0146,1601.0,1600.7,1.15974173]
[1744754594486,6.8766,1601.0,1600.8,6.24685747]
[1744754594808,19.36914844,1601.0,1600.6,6.24750902]
[1744754595005,6.8766,1601.0,1600.7,6.24710256]
[1744754595414,6.8766,1601.0,1600.7,12.49420512]
[1744754595588,6.8766,1601.0,1600.8,6.24677798]
[1744754595785,5.862,1601.0,1600.9,6.24648635]
[1744754595986,6.1,1601.2,1600.9,12.49272434]
[1744754595987,13.27501631,1601.2,1600.9,12.49272434]
[1744754596193,13.27501631,1601.2,1600.8,1.5551778]
[1744754596194,19.52071409,1601.2,1600.8,6.24672231]
[1744754596388,6.24573519,1601.1,1600.8,6.24672231]
[1744754596917,0.9524,1601.0,1600.8,6.24672231]
[1744754597213,5.862,1600.9,1600.8,6.24672231]
[1744754597731,12.10860786,1600.9,1600.6,6.2474621]
[1744754598521,1.5314,1600.8,1600.4,6.24835207]
[1744754598816,7.22888903,1600.7,1600.4,6.24843488]
[1744754599176,7.22885418,1600.7,1600.4,6.24843488]
[1744754599720,13.47632711,1600.7,1600.4,6.24843488]
[1744754600018,13.47632711,1600.7,1600.1,7.17669589]
[1744754600019,6.24847502,1600.4,1600.1,6.24954104]
[1744754600226,18.21147502,1600.4,1600.0,6.24988606]
[1744754600384,0.9931,1600.3,1600.0,6.24988606]
[1744754600584,7.24196586,1600.3,1600.0,6.24988606]
[1744754601383,11.963,1600.4,1600.2,6.24921884]
[1744754601605,11.963,1600.4,1600.3,6.24882834]
[1744754602491,11.963,1600.4,1600.2,6.24921884]
[1744754602699,11.963,1600.4,1600.0,6.24984848]
[1744754603007,11.963,1600.4,1599.9,6.25026117]
[1744754603008,7.23364256,1600.3,1599.9,6.25026117]
[1744754603207,13.48277806,1600.3,1599.9,12.50046751]
[1744754603516,7.23364256,1600.3,1599.9,12.50046751]
[1744754604019,7.23364256,1600.3,1600.0,6.24997483]
[1744754604185,0.9848,1600.3,1600.0,12.49984338]
[1744754604386,7.23365851,1600.3,1600.0,6.24986855]
[1744754604816,0.9848,1600.3,1600.1,6.24946988]
[1744754605196,0.9848,1600.3,1600.2,6.24921884]
[1744754605390,6.1,1600.4,1600.2,6.24921884]
[1744754605691,12.023,1600.4,1600.3,6.24882834]
[1744754605929,5.924,1600.6,1600.5,6.2479182]
[1744754607736,5.924,1600.6,1600.4,6.24824951]
[1744754607940,5.924,1600.6,1600.4,12.49656274]
[1744754608526,0.9745,1600.5,1599.7,9.41170464]
[1744754608700,6.24882447,1600.4,1600.0,12.49970583]
[1744754609109,12.4975999,1600.4,1600.0,12.49970583]
[1744754609304,10.0745,1600.5,1600.0,6.25]
[1744754609504,7.0745,1600.5,1600.2,6.24890684]
[1744754609719,13.32255804,1600.5,1600.2,6.24890684]
[1744754609925,13.32255804,1600.5,1600.2,12.49801355]
[1744754610124,7.0745,1600.5,1600.3,6.24850891]
[1744754610329,6.1,1600.5,1600.4,6.24843789]
[1744754610708,5.924,1600.6,1600.5,6.24804748]
[1744754613641,5.924,1600.6,1600.4,6.24824685]
[1744754614824,5.924,1600.6,1600.4,12.49655449]
[1744754615046,5.924,1600.6,1600.5,6.24804748]
[1744754616438,5.924,1600.6,1600.4,6.24824372]
[1744754616641,5.924,1600.6,1600.4,6.24824285]
[1744754616848,5.924,1600.6,1600.5,6.24804748]
[1744754619254,5.924,1600.6,1600.5,7.49767642]
[1744754619646,5.924,1600.6,1600.5,8.50867642]
[1744754621278,5.924,1600.6,1600.5,8.57114799]
[1744754621693,48.723,1601.1,1600.5,2.32310051]
[1744754621850,1.0252,1601.4,1601.3,6.24492599]
[1744754622173,1.0252,1601.4,1601.0,1.011]
[1744754622174,5.923,1601.5,1601.0,1.011]
[1744754622379,12.16728604,1601.5,1601.2,6.24520235]
[1744754622745,18.41159813,1601.5,1601.2,6.24520235]
[1744754623073,12.16728604,1601.5,1601.2,6.24520235]
[1744754623259,12.16728604,1601.5,1601.2,12.49040504]
[1744754623469,5.923,1601.5,1601.3,12.48961892]
[1744754623654,5.923,1601.5,1601.4,6.24453603]
[1744754623972,5.923,1601.5,1601.4,7.55591178]
[1744754624174,7.0534,1601.9,1601.5,6.24388046]
[1744754624476,5.923,1601.8,1601.6,6.243751]
[1744754624778,6.24348574,1601.7,1601.4,6.24443824]
[1744754625773,6.24421592,1601.5,1601.2,6.24520186]
[1744754626072,5.923,1601.4,1601.2,12.49038998]
[1744754626294,13.10362842,1601.4,1601.1,6.24564778]
[1744754626577,13.10362842,1601.4,1601.1,12.49120046]
[1744754626778,6.24497953,1601.3,1600.9,6.24646857]
[1744754626981,6.24497953,1601.3,1600.9,6.24637338]
[1744754626982,6.24542466,1601.2,1600.9,6.24637338]
[1744754627574,6.24542466,1601.2,1600.9,12.49275025]
[1744754627979,12.49029037,1601.3,1600.9,12.49275025]
[1744754628179,6.24497953,1601.3,1601.0,12.49205597]
[1744754628384,6.859,1601.4,1601.1,6.24543144]
[1744754628545,13.10366568,1601.4,1601.1,6.24543144]
[1744754628988,6.859,1601.4,1601.0,6.24601188]
[1744754629167,1.0012,1601.2,1600.8,12.49346111]
[1744754629480,6.24583554,1601.1,1600.8,6.24662602]
[1744754629681,5.922,1601.0,1600.9,6.24648635]
[1744754630249,5.922,1601.0,1600.8,7.59219855]
[1744754630488,5.922,1601.0,1600.8,1.34557253]
[1744754630689,12.16810013,1601.0,1600.7,6.24716198]
[1744754630986,5.922,1601.0,1600.7,12.49432396]
[1744754631481,5.922,1601.0,1600.8,6.30928917]
[1744754631682,5.922,1601.0,1600.9,6.24648635]
[1744754632982,1.0075,1600.9,1600.5,6.24801081]
[1744754633184,6.24726151,1600.8,1600.4,6.24833794]
[1744754633480,12.49435881,1600.8,1600.4,13.12146033]
[1744754635293,12.49415916,1600.8,1600.4,13.12146033]
[1744754636685,7.22737176,1600.7,1600.4,6.87312239]
[1744754638307,7.22737176,1600.7,1600.4,6.87312239]
[1744754638484,5.913,1600.6,1600.4,13.12141686]
[1744754638693,12.16077513,1600.6,1600.2,13.4682665]
[1744754638896,12.16077513,1600.6,1600.3,6.24863972]
[1744754639203,12.16077513,1600.6,1600.3,12.49735539]
[1744754639408,12.16077513,1600.6,1600.2,13.46859206]
[1744754639604,12.16077513,1600.6,1600.2,14.81545127]
[1744754640309,12.16077513,1600.6,1600.2,13.84515127]
[1744754640468,6.24811998,1600.5,1600.2,7.59594373]
[1744754640668,6.24811998,1600.5,1600.2,12.49819001]
[1744754640870,24.50859223,1600.6,1600.3,6.24882497]
[1744754641100,6.24828694,1600.5,1600.2,6.24908452]
[1744754641405,0.937,1600.4,1600.2,12.49819001]
[1744754641701,12.013,1600.6,1600.4,6.24828976]